[Event "Polofinale MCR junioru 2023"]
[Site "Czech Republic"]
[Date "2023.11.15"]
[Round "6.18"]
[White "Davidek, Zdenek"]
[Black "Roubal, Matyas"]
[Result "1/2-1/2"]
[TimeControl "90 min per 40 moves + 15 min + 30 sec / move from move 1"]
[WhiteFideId "23725001"]
[BlackFideId "23727152"]
[WhiteElo "2099"]
[BlackElo "1837"]

1. d4 {[%clk 01:30:56]} {[%emt 00:00:03]} Nf6 {[%clk 01:30:46]} {[%emt
00:00:15]} 2. c4 {[%clk 01:31:22]} {[%emt 00:00:04]} g6 {[%clk 01:31:07]}
{[%emt 00:00:09]} 3. Nc3 {[%clk 01:31:46]} {[%emt 00:00:05]} Bg7 {[%clk
01:31:31]} {[%emt 00:00:07]} 4. e4 {[%clk 01:32:10]} {[%emt 00:00:05]} d6
{[%clk 01:31:57]} {[%emt 00:00:05]} 5. f3 {[%clk 01:32:17]} {[%emt 00:00:23]}
O-O {[%clk 01:32:16]} {[%emt 00:00:10]} 6. Be3 {[%clk 01:32:23]} {[%emt
00:00:24]} c5 {[%clk 01:32:05]} {[%emt 00:00:41]} 7. Nge2 {[%clk 01:32:48]}
{[%emt 00:00:05]} cxd4 {[%clk 01:32:23]} {[%emt 00:00:13]} 8. Nxd4 {[%clk
01:33:10]} {[%emt 00:00:06]} Nc6 {[%clk 01:32:48]} {[%emt 00:00:08]} 9. Be2
{[%clk 01:33:13]} {[%emt 00:00:27]} Bd7 {[%clk 01:33:14]} {[%emt 00:00:04]} 10.
O-O {[%clk 01:33:36]} {[%emt 00:00:07]} Nxd4 {[%clk 01:33:42]} {[%emt
00:00:03]} 11. Bxd4 {[%clk 01:34:01]} {[%emt 00:00:05]} Bc6 {[%clk 01:34:07]}
{[%emt 00:00:05]} 12. b4 {[%clk 01:34:21]} {[%emt 00:00:10]} b6 {[%clk
01:33:32]} {[%emt 00:01:05]} 13. Qd2 {[%clk 01:33:44]} {[%emt 00:01:07]} Nd7
{[%clk 01:32:41]} {[%emt 00:01:21]} 14. Bxg7 {[%clk 01:33:59]} {[%emt
00:00:15]} Kxg7 {[%clk 01:33:07]} {[%emt 00:00:05]} 15. Qd4+ {[%clk 01:34:22]}
{[%emt 00:00:07]} Kg8 {[%clk 01:33:07]} {[%emt 00:00:30]} 16. f4 {[%clk
01:34:04]} {[%emt 00:00:48]} Qc7 {[%clk 01:26:10]} {[%emt 00:07:27]} 17. Rad1
{[%clk 01:16:26]} {[%emt 00:18:09]} Rad8 {[%clk 01:18:32]} {[%emt 00:08:08]} 18.
a3 {[%clk 01:03:34]} {[%emt 00:13:22]} Rfe8 {[%clk 01:14:08]} {[%emt 00:04:53]}
19. h4 {[%clk 00:58:06]} {[%emt 00:05:59]} Nf6 {[%clk 01:08:49]} {[%emt
00:05:49]} 20. Qe3 {[%clk 00:57:17]} {[%emt 00:01:19]} e6 {[%clk 01:01:33]}
{[%emt 00:07:46]} 21. h5 {[%clk 00:48:30]} {[%emt 00:09:17]} Nxh5 {[%clk
00:59:26]} {[%emt 00:02:37]} 22. Bxh5 {[%clk 00:48:50]} {[%emt 00:00:09]} gxh5
{[%clk 00:59:51]} {[%emt 00:00:05]} 23. f5 {[%clk 00:43:04]} {[%emt 00:06:17]}
f6 {[%clk 00:55:52]} {[%emt 00:04:29]} 24. fxe6 {[%clk 00:22:02]} {[%emt
00:21:32]} Rxe6 {[%clk 00:55:06]} {[%emt 00:01:16]} 25. Qf4 {[%clk 00:21:57]}
{[%emt 00:00:35]} Qe7 {[%clk 00:51:00]} {[%emt 00:04:36]} 26. Rd4 {[%clk
00:21:57]} {[%emt 00:00:30]} Re8 {[%clk 00:50:18]} {[%emt 00:01:11]} 27. Rfd1
{[%clk 00:16:31]} {[%emt 00:05:56]} Bxe4 {[%clk 00:48:25]} {[%emt 00:02:23]} 28.
Rxd6 {[%clk 00:16:57]} {[%emt 00:00:05]} Rxd6 {[%clk 00:48:32]} {[%emt
00:00:24]} 29. Qxd6 {[%clk 00:17:01]} {[%emt 00:00:26]} Bb7 {[%clk 00:46:58]}
{[%emt 00:02:04]} 30. Qxe7 {[%clk 00:16:54]} {[%emt 00:00:38]} Rxe7 {[%clk
00:47:26]} {[%emt 00:00:02]} 31. Nb5 {[%clk 00:15:44]} {[%emt 00:01:40]} Bc6
{[%clk 00:46:05]} {[%emt 00:01:51]} 32. Rd8+ {[%clk 00:15:57]} {[%emt
00:00:16]} Kf7 {[%clk 00:45:34]} {[%emt 00:01:00]} 33. Nd4 {[%clk 00:15:02]}
{[%emt 00:01:26]} Be4 {[%clk 00:45:05]} {[%emt 00:00:59]} 34. c5 {[%clk
00:13:44]} {[%emt 00:01:49]} bxc5 {[%clk 00:45:03]} {[%emt 00:00:32]} 35. bxc5
{[%clk 00:14:12]} {[%emt 00:00:01]} Rc7 {[%clk 00:44:52]} {[%emt 00:00:41]} 36.
Nb3 {[%clk 00:07:41]} {[%emt 00:07:02]} Bc2 {[%clk 00:45:07]} {[%emt 00:00:14]}
37. Nd4 {[%clk 00:07:54]} {[%emt 00:00:18]} Be4 {[%clk 00:45:00]} {[%emt
00:00:37]} 38. Nb3 {[%clk 00:08:05]} {[%emt 00:00:19]} 1/2-1/2

[Event "Polofinale MCR junioru 2023"]
[Site "Czech Republic"]
[Date "2023.11.15"]
[Round "6.19"]
[White "Benes, Jachym"]
[Black "Kulhanek, Jachym"]
[Result "1/2-1/2"]
[TimeControl "90 min per 40 moves + 15 min + 30 sec / move from move 1"]
[WhiteFideId "23710870"]
[BlackFideId "23716193"]
[WhiteElo "1950"]
[BlackElo "2056"]

1. d4 {[%clk 01:28:58]} {[%emt 00:02:02]} Nf6 {[%clk 01:30:55]} {[%emt
00:00:05]} 2. c4 {[%clk 01:29:25]} {[%emt 00:00:04]} g6 {[%clk 01:31:21]}
{[%emt 00:00:04]} 3. Nc3 {[%clk 01:29:48]} {[%emt 00:00:07]} Bg7 {[%clk
01:31:47]} {[%emt 00:00:04]} 4. e4 {[%clk 01:30:15]} {[%emt 00:00:03]} d6
{[%clk 01:32:13]} {[%emt 00:00:04]} 5. Nf3 {[%clk 01:30:41]} {[%emt 00:00:04]}
O-O {[%clk 01:32:36]} {[%emt 00:00:07]} 6. h3 {[%clk 01:31:05]} {[%emt
00:00:06]} c5 {[%clk 01:33:00]} {[%emt 00:00:06]} 7. d5 {[%clk 01:31:32]}
{[%emt 00:00:04]} e6 {[%clk 01:33:06]} {[%emt 00:00:24]} 8. Be2 {[%clk
01:27:20]} {[%emt 00:04:41]} exd5 {[%clk 01:33:27]} {[%emt 00:00:09]} 9. exd5
{[%clk 01:27:44]} {[%emt 00:00:05]} Bf5 {[%clk 01:30:34]} {[%emt 00:03:23]} 10.
Bf4 {[%clk 01:08:37]} {[%emt 00:19:37]} Ne4 {[%clk 01:28:55]} {[%emt 00:02:09]}
11. Rc1 {[%clk 01:08:05]} {[%emt 00:01:01]} Nxc3 {[%clk 01:26:39]} {[%emt
00:02:46]} 12. bxc3 {[%clk 01:05:21]} {[%emt 00:03:15]} Qc7 {[%clk 01:26:29]}
{[%emt 00:00:40]} 13. O-O {[%clk 01:05:22]} {[%emt 00:00:28]} Re8 {[%clk
01:19:01]} {[%emt 00:07:59]} 14. Qd2 {[%clk 00:59:04]} {[%emt 00:06:48]} b6
{[%clk 00:48:50]} {[%emt 00:30:41]} 15. Rfe1 {[%clk 00:56:43]} {[%emt
00:02:51]} Na6 {[%clk 00:45:16]} {[%emt 00:04:04]} 16. g4 {[%clk 00:45:31]}
{[%emt 00:11:42]} Bc8 {[%clk 00:42:56]} {[%emt 00:02:50]} 17. Bd1 {[%clk
00:44:08]} {[%emt 00:01:53]} Rxe1+ {[%clk 00:42:55]} {[%emt 00:00:30]} 18. Qxe1
{[%clk 00:44:35]} {[%emt 00:00:04]} Qd7 {[%clk 00:42:51]} {[%emt 00:00:34]} 19.
Rc2 {[%clk 00:38:43]} {[%emt 00:06:22]} Bb7 {[%clk 00:37:49]} {[%emt 00:05:32]}
20. Re2 {[%clk 00:39:08]} {[%emt 00:00:05]} Bf8 {[%clk 00:38:09]} {[%emt
00:00:10]} 21. Ng5 {[%clk 00:36:05]} {[%emt 00:03:32]} Nc7 {[%clk 00:28:21]}
{[%emt 00:10:19]} 22. Ne4 {[%clk 00:35:58]} {[%emt 00:00:36]} Ne8 {[%clk
00:27:22]} {[%emt 00:01:29]} 23. Re3 {[%clk 00:30:48]} {[%emt 00:05:40]} Ba6
{[%clk 00:16:53]} {[%emt 00:10:59]} 24. Nd2 {[%clk 00:30:17]} {[%emt 00:01:02]}
Ng7 {[%clk 00:14:45]} {[%emt 00:02:38]} 25. Ne4 {[%clk 00:26:38]} {[%emt
00:04:09]} Ne8 {[%clk 00:13:52]} {[%emt 00:01:23]} 1/2-1/2

[Event "Polofinale MCR junioru 2023"]
[Site "Czech Republic"]
[Date "2023.11.15"]
[Round "6.20"]
[White "Hozda, Max"]
[Black "Sprinar, Michal"]
[Result "1-0"]
[TimeControl "90 min per 40 moves + 15 min + 30 sec / move from move 1"]
[WhiteFideId "23725958"]
[BlackFideId "23714190"]
[WhiteElo "2045"]
[BlackElo "1742"]

1. d4 {[%clk 01:30:29]} {[%emt 00:00:27]} Nf6 {[%clk 01:30:56]} {[%emt
00:00:08]} 2. Nf3 {[%clk 01:30:12]} {[%emt 00:00:47]} g6 {[%clk 01:31:15]}
{[%emt 00:00:11]} 3. c4 {[%clk 01:30:13]} {[%emt 00:00:29]} Bg7 {[%clk
01:30:59]} {[%emt 00:00:46]} 4. g3 {[%clk 01:30:33]} {[%emt 00:00:11]} c6
{[%clk 01:30:32]} {[%emt 00:00:56]} 5. Bg2 {[%clk 01:30:12]} {[%emt 00:00:50]}
O-O {[%clk 01:30:27]} {[%emt 00:00:35]} 6. O-O {[%clk 01:30:36]} {[%emt
00:00:06]} d5 {[%clk 01:30:54]} {[%emt 00:00:04]} 7. b3 {[%clk 01:28:56]}
{[%emt 00:02:11]} Nbd7 {[%clk 01:25:59]} {[%emt 00:05:24]} 8. Bb2 {[%clk
01:26:27]} {[%emt 00:03:00]} Re8 {[%clk 01:22:29]} {[%emt 00:03:59]} 9. Nc3
{[%clk 01:19:44]} {[%emt 00:07:13]} Nb6 {[%clk 01:22:22]} {[%emt 00:00:37]} 10.
cxd5 {[%clk 01:11:43]} {[%emt 00:08:31]} cxd5 {[%clk 01:21:35]} {[%emt
00:01:17]} 11. Ne5 {[%clk 01:10:48]} {[%emt 00:01:24]} Ng4 {[%clk 01:17:20]}
{[%emt 00:04:43]} 12. Nxg4 {[%clk 01:04:39]} {[%emt 00:06:42]} Bxg4 {[%clk
01:17:41]} {[%emt 00:00:09]} 13. Qd2 {[%clk 01:02:19]} {[%emt 00:02:50]} Qd7
{[%clk 01:12:17]} {[%emt 00:05:53]} 14. Rfd1 {[%clk 00:59:06]} {[%emt
00:03:45]} Rac8 {[%clk 01:09:58]} {[%emt 00:02:48]} 15. a4 {[%clk 00:58:40]}
{[%emt 00:00:57]} Be6 {[%clk 01:00:13]} {[%emt 00:10:12]} 16. Nb5 {[%clk
00:49:43]} {[%emt 00:09:29]} a6 {[%clk 00:57:50]} {[%emt 00:02:53]} 17. Nc3
{[%clk 00:50:04]} {[%emt 00:00:09]} f6 {[%clk 00:57:46]} {[%emt 00:00:31]} 18.
a5 {[%clk 00:49:39]} {[%emt 00:00:58]} Na8 {[%clk 00:56:56]} {[%emt 00:01:20]}
19. Na4 {[%clk 00:49:31]} {[%emt 00:00:39]} Bf7 {[%clk 00:57:14]} {[%emt
00:00:12]} 20. Nc5 {[%clk 00:47:07]} {[%emt 00:02:55]} Qb5 {[%clk 00:55:45]}
{[%emt 00:01:57]} 21. Ra4 {[%clk 00:41:13]} {[%emt 00:06:25]} Rb8 {[%clk
00:43:58]} {[%emt 00:12:15]} 22. Rb4 {[%clk 00:28:34]} {[%emt 00:13:11]} Qxa5
{[%clk 00:40:13]} {[%emt 00:04:15]} 23. Nxb7 {[%clk 00:28:15]} {[%emt
00:00:48]} Qc7 {[%clk 00:40:29]} {[%emt 00:00:11]} 24. Rc1 {[%clk 00:27:33]}
{[%emt 00:01:15]} Qd7 {[%clk 00:40:25]} {[%emt 00:00:34]} 25. Nc5 {[%clk
00:27:18]} {[%emt 00:00:45]} Qd6 {[%clk 00:40:38]} {[%emt 00:00:15]} 26. Nb7
{[%clk 00:26:03]} {[%emt 00:01:49]} Qd7 {[%clk 00:40:58]} {[%emt 00:00:09]} 27.
Nc5 {[%clk 00:26:21]} {[%emt 00:00:12]} Qd6 {[%clk 00:41:20]} {[%emt 00:00:08]}
28. Ra4 {[%clk 00:23:18]} {[%emt 00:03:34]} Nc7 {[%clk 00:38:22]} {[%emt
00:03:27]} 29. Ba3 {[%clk 00:22:58]} {[%emt 00:00:50]} Qb6 {[%clk 00:36:49]}
{[%emt 00:02:02]} 30. Bb4 {[%clk 00:21:49]} {[%emt 00:01:40]} Rbc8 {[%clk
00:29:05]} {[%emt 00:08:12]} 31. Ba5 {[%clk 00:18:34]} {[%emt 00:03:46]} Qb5
{[%clk 00:28:47]} {[%emt 00:00:46]} 32. Rca1 {[%clk 00:14:03]} {[%emt
00:05:04]} Ne6 {[%clk 00:27:40]} {[%emt 00:01:37]} 33. Rb4 {[%clk 00:13:27]}
{[%emt 00:01:06]} Qc6 {[%clk 00:26:44]} {[%emt 00:01:25]} 34. Rb6 {[%emt
00:01:04]} 1-0

[Event "Polofinale MCR junioru 2023"]
[Site "Czech Republic"]
[Date "2023.11.15"]
[Round "6.21"]
[White "Mametev, Artem"]
[Black "Mrazek, Roman"]
[Result "1-0"]
[TimeControl "90 min per 40 moves + 15 min + 30 sec / move from move 1"]
[WhiteFideId "23710195"]
[BlackFideId "23707062"]
[WhiteElo "2024"]
[BlackElo "1866"]

1. e4 {[%clk 01:29:10]} {[%emt 00:01:49]} c5 {[%clk 01:30:53]} {[%emt
00:00:07]} 2. Nf3 {[%clk 01:29:34]} {[%emt 00:00:06]} e6 {[%clk 01:31:17]}
{[%emt 00:00:06]} 3. d4 {[%clk 01:29:56]} {[%emt 00:00:08]} cxd4 {[%clk
01:31:42]} {[%emt 00:00:06]} 4. Nxd4 {[%clk 01:30:21]} {[%emt 00:00:05]} Nc6
{[%clk 01:32:06]} {[%emt 00:00:06]} 5. Nc3 {[%clk 01:30:47]} {[%emt 00:00:04]}
a6 {[%clk 01:31:19]} {[%emt 00:01:18]} 6. g3 {[%clk 01:30:30]} {[%emt
00:00:46]} Nge7 {[%clk 01:31:01]} {[%emt 00:00:49]} 7. Bg2 {[%clk 01:30:18]}
{[%emt 00:00:41]} Nxd4 {[%clk 01:31:21]} {[%emt 00:00:11]} 8. Qxd4 {[%clk
01:30:42]} {[%emt 00:00:06]} Nc6 {[%clk 01:31:49]} {[%emt 00:00:02]} 9. Qd3
{[%clk 01:29:52]} {[%emt 00:01:19]} b5 {[%clk 01:30:15]} {[%emt 00:02:05]} 10.
O-O {[%clk 01:26:28]} {[%emt 00:03:53]} Bb7 {[%clk 01:26:49]} {[%emt 00:03:56]}
11. Bf4 {[%clk 01:23:36]} {[%emt 00:03:22]} d6 {[%clk 01:20:21]} {[%emt
00:06:59]} 12. Rad1 {[%clk 01:22:05]} {[%emt 00:02:00]} Ne5 {[%clk 01:15:09]}
{[%emt 00:05:42]} 13. Qe2 {[%clk 01:22:19]} {[%emt 00:00:16]} Qc7 {[%clk
01:13:38]} {[%emt 00:02:00]} 14. Bc1 {[%clk 01:12:12]} {[%emt 00:10:38]} Be7
{[%clk 01:08:39]} {[%emt 00:05:29]} 15. f4 {[%clk 01:12:33]} {[%emt 00:00:10]}
Nd7 {[%clk 01:05:41]} {[%emt 00:03:27]} 16. f5 {[%clk 00:43:44]} {[%emt
00:29:19]} e5 {[%clk 00:54:54]} {[%emt 00:11:17]} 17. a3 {[%clk 00:40:21]}
{[%emt 00:03:53]} Rc8 {[%clk 00:50:52]} {[%emt 00:04:31]} 18. Kh1 {[%clk
00:37:20]} {[%emt 00:03:31]} Nf6 {[%clk 00:46:22]} {[%emt 00:04:59]} 19. Rd3
{[%clk 00:31:57]} {[%emt 00:05:54]} h6 {[%clk 00:45:41]} {[%emt 00:01:10]} 20.
Bf3 {[%clk 00:28:05]} {[%emt 00:04:22]} Nd7 {[%clk 00:43:31]} {[%emt 00:02:40]}
21. h4 {[%clk 00:27:11]} {[%emt 00:01:23]} Bc6 {[%clk 00:38:51]} {[%emt
00:05:10]} 22. Rdd1 {[%clk 00:17:40]} {[%emt 00:10:01]} Rb8 {[%clk 00:37:20]}
{[%emt 00:02:01]} 23. Kg2 {[%clk 00:17:38]} {[%emt 00:00:33]} Qb7 {[%clk
00:30:16]} {[%emt 00:07:33]} 24. Rh1 {[%clk 00:16:42]} {[%emt 00:01:25]} Kd8
{[%clk 00:29:18]} {[%emt 00:01:29]} 25. Bd2 {[%clk 00:14:23]} {[%emt 00:02:49]}
Rc8 {[%clk 00:26:31]} {[%emt 00:03:17]} 26. Nd5 {[%clk 00:13:50]} {[%emt
00:01:04]} Bxd5 {[%clk 00:26:40]} {[%emt 00:00:21]} 27. Ba5+ {[%clk 00:14:16]}
{[%emt 00:00:05]} Ke8 {[%clk 00:26:45]} {[%emt 00:00:23]} 28. Rxd5 {[%clk
00:14:40]} {[%emt 00:00:07]} Nb6 {[%clk 00:25:12]} {[%emt 00:02:02]} 29. Bxb6
{[%clk 00:13:25]} {[%emt 00:01:46]} Qxb6 {[%clk 00:25:41]} {[%emt 00:00:02]} 30.
c3 {[%clk 00:13:47]} {[%emt 00:00:07]} Rc5 {[%clk 00:21:30]} {[%emt 00:04:39]}
31. Rhd1 {[%clk 00:12:14]} {[%emt 00:02:05]} Rxd5 {[%clk 00:19:46]} {[%emt
00:02:14]} 32. Rxd5 {[%clk 00:12:42]} {[%emt 00:00:02]} g5 {[%clk 00:11:16]}
{[%emt 00:09:00]} 33. Qd2 {[%clk 00:03:59]} {[%emt 00:09:13]} gxh4 {[%clk
00:08:36]} {[%emt 00:03:11]} 34. f6 {[%clk 00:03:48]} {[%emt 00:00:41]} Bf8
{[%clk 00:07:29]} {[%emt 00:01:36]} 35. g4 {[%clk 00:00:50]} {[%emt 00:03:29]}
Rg8 {[%clk 00:07:24]} {[%emt 00:00:34]} 36. Qf2 {[%clk 00:00:42]} {[%emt
00:00:39]} Qxf2+ {[%clk 00:07:36]} {[%emt 00:00:19]} 37. Kxf2 {[%clk 00:01:10]}
{[%emt 00:00:01]} Rg6 {[%clk 00:07:44]} {[%emt 00:00:22]} 38. a4 {[%clk
00:00:48]} {[%emt 00:00:52]} Rxf6 {[%clk 00:07:06]} {[%emt 00:01:07]} 39. axb5
{[%clk 00:01:05]} {[%emt 00:00:14]} axb5 {[%clk 00:07:17]} {[%emt 00:00:19]} 40.
Rxb5 {[%clk 00:01:01]} {[%emt 00:00:33]} Kd7 {[%clk 00:05:45]} {[%emt
00:02:02]} 41. Rb8 {[%clk 00:00:46]} {[%emt 00:00:45]} Be7 {[%clk 00:04:58]}
{[%emt 00:01:17]} 42. Rb7+ {[%clk 00:00:56]} {[%emt 00:00:20]} Ke6 {[%clk
00:03:48]} {[%emt 00:01:40]} 43. Kg2 {[%clk 00:15:18]} {[%emt 00:01:08]} Rg6
{[%clk 00:18:40]} {[%emt 00:00:37]} 44. b4 {[%clk 00:14:33]} {[%emt 00:01:17]}
Rg8 {[%clk 00:19:00]} {[%emt 00:00:09]} 45. b5 {[%clk 00:14:13]} {[%emt
00:00:50]} Rc8 {[%clk 00:19:11]} {[%emt 00:00:16]} 46. g5 {[%clk 00:14:18]}
{[%emt 00:00:28]} f5 {[%clk 00:19:06]} {[%emt 00:00:35]} 47. exf5+ {[%clk
00:13:54]} {[%emt 00:00:55]} Kxf5 {[%clk 00:19:23]} {[%emt 00:00:13]} 48. Rxe7
{[%clk 00:13:36]} {[%emt 00:00:48]} hxg5 {[%clk 00:19:08]} {[%emt 00:00:45]} 49.
Bc6 {[%clk 00:12:44]} {[%emt 00:01:22]} Kf4 {[%clk 00:19:08]} {[%emt 00:00:28]}
50. Re8 {[%clk 00:12:02]} {[%emt 00:01:14]} Rc7 {[%clk 00:18:15]} {[%emt
00:01:22]} 51. b6 {[%clk 00:10:55]} {[%emt 00:01:37]} Rxc6 {[%clk 00:18:38]}
{[%emt 00:00:08]} 52. b7 {[%clk 00:11:23]} {[%emt 00:00:03]} h3+ {[%clk
00:19:01]} {[%emt 00:00:06]} 53. Kxh3 {[%clk 00:11:09]} {[%emt 00:00:44]} Rxc3+
{[%clk 00:18:59]} {[%emt 00:00:33]} 54. Kg2 {[%clk 00:11:35]} {[%emt 00:00:04]}
Rc2+ {[%clk 00:18:42]} {[%emt 00:00:46]} 55. Kf1 {[%clk 00:12:00]} {[%emt
00:00:04]} Rc1+ {[%clk 00:18:30]} {[%emt 00:00:42]} 56. Ke2 {[%clk 00:12:14]}
{[%emt 00:00:16]} Rc2+ {[%clk 00:18:14]} {[%emt 00:00:47]} 57. Kd3 {[%clk
00:12:05]} {[%emt 00:00:38]} Rb2 {[%clk 00:18:13]} {[%emt 00:00:31]} 58. Rf8+
{[%clk 00:12:01]} {[%emt 00:00:34]} Kg3 {[%clk 00:18:21]} {[%emt 00:00:21]} 59.
b8=Q {[%emt 00:00:14]} Rxb8 {[%clk 00:18:43]} {[%emt 00:00:07]} 60. Rxb8 {[%clk
00:12:44]} {[%emt 00:00:05]} d5 {[%clk 00:19:01]} {[%emt 00:00:12]} 61. Rb5
{[%clk 00:12:50]} {[%emt 00:00:24]} e4+ {[%clk 00:19:19]} {[%emt 00:00:12]} 62.
Ke3 {[%clk 00:13:05]} {[%emt 00:00:15]} d4+ {[%clk 00:19:10]} {[%emt 00:00:39]}
63. Kxd4 {[%clk 00:10:23]} {[%emt 00:03:11]} g4 {[%clk 00:18:28]} {[%emt
00:01:12]} 64. Kxe4 {[%clk 00:10:28]} {[%emt 00:00:25]} Kf2 {[%clk 00:18:50]}
{[%emt 00:00:07]} 65. Rb2+ {[%clk 00:10:51]} {[%emt 00:00:07]} 1-0

[Event "Polofinale MCR junioru 2023"]
[Site "Czech Republic"]
[Date "2023.11.15"]
[Round "6.22"]
[White "Rousek, Jan"]
[Black "Siles, Jan"]
[Result "1-0"]
[TimeControl "90 min per 40 moves + 15 min + 30 sec / move from move 1"]
[WhiteFideId "386669"]
[BlackFideId "23715405"]
[WhiteElo "2006"]
[BlackElo "1829"]

1. d4 {[%clk 01:30:56]} {[%emt 00:00:02]} Nf6 {[%clk 01:30:51]} {[%emt
00:00:07]} 2. c4 {[%clk 01:31:07]} {[%emt 00:00:22]} c5 {[%clk 01:31:16]}
{[%emt 00:00:05]} 3. d5 {[%clk 01:31:28]} {[%emt 00:00:09]} b5 {[%clk
01:31:39]} {[%emt 00:00:08]} 4. cxb5 {[%clk 01:31:12]} {[%emt 00:00:45]} a6
{[%clk 01:32:04]} {[%emt 00:00:06]} 5. bxa6 {[%clk 01:30:51]} {[%emt 00:00:51]}
Bxa6 {[%clk 01:32:09]} {[%emt 00:00:25]} 6. Nc3 {[%clk 01:30:02]} {[%emt
00:01:19]} g6 {[%clk 01:31:38]} {[%emt 00:01:02]} 7. g3 {[%clk 01:29:49]}
{[%emt 00:00:42]} d6 {[%clk 01:31:31]} {[%emt 00:00:38]} 8. Bg2 {[%clk
01:29:31]} {[%emt 00:00:47]} Bg7 {[%clk 01:31:37]} {[%emt 00:00:25]} 9. Nf3
{[%clk 01:29:47]} {[%emt 00:00:14]} O-O {[%clk 01:31:30]} {[%emt 00:00:38]} 10.
O-O {[%clk 01:29:52]} {[%emt 00:00:23]} Nbd7 {[%clk 01:31:10]} {[%emt
00:00:51]} 11. Rb1 {[%clk 01:28:19]} {[%emt 00:02:03]} Qb6 {[%clk 01:25:20]}
{[%emt 00:06:20]} 12. b3 {[%clk 01:21:49]} {[%emt 00:06:59]} Rfb8 {[%clk
01:18:14]} {[%emt 00:07:36]} 13. Bb2 {[%clk 01:11:48]} {[%emt 00:10:31]} c4
{[%clk 01:05:23]} {[%emt 00:13:23]} 14. Nd4 {[%clk 00:53:40]} {[%emt 00:18:37]}
Nc5 {[%clk 00:56:50]} {[%emt 00:09:03]} 15. Nc6 {[%clk 00:43:38]} {[%emt
00:10:31]} cxb3 {[%clk 00:44:39]} {[%emt 00:12:42]} 16. Nxb8 {[%clk 00:43:21]}
{[%emt 00:00:46]} bxa2 {[%clk 00:44:29]} {[%emt 00:00:41]} 17. Nxa2 {[%clk
00:43:13]} {[%emt 00:00:37]} Rxb8 {[%clk 00:43:44]} {[%emt 00:01:15]} 18. Bxf6
{[%clk 00:40:16]} {[%emt 00:03:26]} Qxb1 {[%clk 00:44:01]} {[%emt 00:00:14]} 19.
Qxb1 {[%clk 00:40:31]} {[%emt 00:00:15]} Rxb1 {[%clk 00:44:26]} {[%emt
00:00:05]} 20. Rxb1 {[%clk 00:40:57]} {[%emt 00:00:04]} Bxf6 {[%clk 00:44:35]}
{[%emt 00:00:22]} 21. e3 {[%clk 00:39:49]} {[%emt 00:01:37]} Nd3 {[%clk
00:40:03]} {[%emt 00:05:02]} 22. Bf1 {[%clk 00:32:10]} {[%emt 00:08:09]} g5
{[%clk 00:33:12]} {[%emt 00:07:22]} 23. Nb4 {[%clk 00:31:08]} {[%emt 00:01:32]}
Nxb4 {[%clk 00:32:46]} {[%emt 00:00:56]} 24. Rxb4 {[%clk 00:31:32]} {[%emt
00:00:05]} Bxf1 {[%clk 00:33:08]} {[%emt 00:00:08]} 25. Kxf1 {[%clk 00:31:57]}
{[%emt 00:00:04]} Kg7 {[%clk 00:28:51]} {[%emt 00:04:47]} 26. g4 {[%clk
00:26:48]} {[%emt 00:05:39]} h5 {[%clk 00:23:20]} {[%emt 00:06:03]} 27. h3
{[%clk 00:26:02]} {[%emt 00:01:15]} h4 {[%clk 00:20:33]} {[%emt 00:03:18]} 28.
Rb7 {[%clk 00:25:45]} {[%emt 00:00:45]} Kf8 {[%clk 00:19:52]} {[%emt 00:01:12]}
29. Rb8+ {[%clk 00:26:04]} {[%emt 00:00:11]} Kg7 {[%clk 00:20:13]} {[%emt
00:00:09]} 30. Re8 {[%clk 00:26:22]} {[%emt 00:00:12]} 1-0